fUSD/lending_fUSD_20250609
["ID","MTS","AMOUNT","RATE_DAILY","PERIOD"]
[365127094,1749481840052,-628.57,0.00019178,2]
[365127096,1749481840062,-455.05793335,0.00019178,2]
[365127098,1749481840072,-1028.36,0.00019178,2]
[365127100,1749481840081,-490.0,0.00019178,2]
[365127102,1749481840091,-490.0,0.00019178,2]
[365127104,1749481840101,-490.0,0.00019178,2]
[365127106,1749481840111,-954.28,0.00019178,2]
[365127108,1749481840120,-460.0,0.00019178,2]
[365127110,1749481840130,-490.0,0.00019178,2]
[365127112,1749481840139,-490.0,0.00019178,2]
[365127114,1749481840149,-490.0,0.00019178,2]
[365127116,1749481840158,-490.0,0.00019178,2]
[365127118,1749481840167,-716.03,0.00019178,2]
[365127120,1749481840177,-490.0,0.00019178,2]
[365127122,1749481840187,-1009.72,0.00019178,2]
[365127123,1749481840196,-460.0,0.00019178,2]
[365127125,1749481840205,-1487.91,0.00019178,2]
[365127127,1749481840215,-1012.31,0.00019178,2]
[365127129,1749481840224,-490.0,0.00019178,2]
[365127131,1749481840237,-432.98955864,0.00019178,2]
[365127134,1749481840247,-490.0,0.00019178,2]
[365127135,1749481840256,-490.0,0.00019178,2]
[365127138,1749481840265,-490.0,0.00019178,2]
[365127139,1749481840275,-460.0,0.00019178,2]
[365127141,1749481840285,-604.19,0.00019178,2]
[365127143,1749481840294,-410.03856207,0.00019178,2]
[365127145,1749481840303,-400.69838299,0.00019178,2]
[365127146,1749481840315,-490.0,0.00019178,2]
[365127148,1749481840324,-1157.54,0.00019178,2]
[365127149,1749481840333,-490.0,0.00019178,2]
[365127151,1749481840342,-490.0,0.00019178,2]
[365127153,1749481840351,-3459.96,0.00019178,2]
[365127155,1749481840362,-490.0,0.00019178,2]
[365127157,1749481840371,-1225.39,0.00019178,2]
[365127159,1749481840380,-490.0,0.00019178,2]
[365127161,1749481840390,-427.63162811,0.00019178,2]
[365127164,1749481840401,-805.37,0.00019178,2]
[365127167,1749481840411,-2314.65,0.00019178,2]
[365127170,1749481840421,-490.0,0.00019178,2]
[365127173,1749481840430,-490.0,0.00019178,2]
[365127176,1749481840440,-460.0,0.00019178,2]
[365127179,1749481840450,-480.0,0.00019178,2]
[365127182,1749481840460,-460.0,0.00019178,2]
[365127185,1749481840471,-490.0,0.00019178,2]
[365127188,1749481840481,-10343.7,0.00019178,2]
[365127191,1749481840491,-490.0,0.00019178,2]
[365127193,1749481840500,-367.53985227,0.00019178,2]
[365127196,1749481840510,-424.18306172,0.00019178,2]
[365127198,1749481840519,-660.77,0.00019178,2]
[365127201,1749481840528,-490.0,0.00019178,2]
[365127203,1749481840538,-488.26837997,0.00019178,2]
[365127205,1749481840548,-420.82193554,0.00019178,2]
[365127207,1749481840558,-364.75585927,0.00019178,2]
[365127209,1749481840567,-490.0,0.00019178,2]
[365127211,1749481840577,-2392.15,0.00019178,2]
[365127213,1749481840587,-424.45751592,0.00019178,2]
[365127215,1749481840596,-1296.15,0.00019178,2]
[365127217,1749481840605,-3627.26,0.00019178,2]
[365127219,1749481840615,-490.0,0.00019178,2]
[365127221,1749481840624,-894.72,0.00019178,2]
[365127223,1749481840633,-814.72,0.00019178,2]
[365127225,1749481840643,-1584.91,0.00019178,2]
[365127227,1749481840652,-151.0,0.00019178,2]
[365127229,1749481840661,-163.45,0.00019178,2]
[365127231,1749481840671,-1151.01,0.00019205,30]
[365127233,1749481840681,-238.26818472,0.0001921,2]
[365127235,1749481840690,-1450.75153633,0.00019242,2]
[365127237,1749481840699,-238.26818472,0.00019245,2]
[365127239,1749481840709,-561.0,0.0001925,2]
[365127241,1749481840718,-551.0,0.0001926,2]
[365127243,1749481840727,-238.26818472,0.00019279,2]
[365127245,1749481840736,-1589.0,0.00019288,2]
[365127247,1749481840745,-410.0,0.00019311,2]
[365127249,1749481840755,-238.26818472,0.00019314,2]
[365127251,1749481840763,-1450.75153633,0.00019315,2]
[365127253,1749481840772,-850.37,0.00019342,2]
[365127254,1749481840782,-2767.64,0.00019342,2]
[365127256,1749481840791,-490.0,0.00019342,2]
[365127258,1749481840801,-1877.32,0.00019342,2]
[365127261,1749481840811,-490.0,0.00019342,2]
[365127262,1749481840821,-434.40293445,0.00019342,2]
[365127264,1749481840830,-490.0,0.00019342,2]
[365127267,1749481840840,-390.20194575,0.00019342,2]
[365127268,1749481840849,-434.11045886,0.00019342,2]
[365127270,1749481840858,-490.0,0.00019342,2]
[365127272,1749481840867,-490.0,0.00019342,2]
[365127275,1749481840877,-1168.94,0.00019342,2]
[365127276,1749481840886,-490.0,0.00019342,2]
[365127278,1749481840895,-490.0,0.00019342,2]
[365127280,1749481840904,-490.0,0.00019342,2]
[365127283,1749481840914,-937.76,0.00019342,2]
[365127284,1749481840923,-2873.5,0.00019342,2]
[365127286,1749481840933,-490.0,0.00019342,2]
[365127288,1749481840942,-1477.15,0.00019342,2]
[365127290,1749481840951,-490.0,0.00019342,2]
[365127293,1749481840961,-490.0,0.00019342,2]
[365127294,1749481840972,-761.43,0.00019342,2]
[365127296,1749481840981,-490.0,0.00019342,2]
[365127298,1749481840990,-490.0,0.00019342,2]
[365127300,1749481841000,-450.0,0.00019342,2]
[365127302,1749481841009,-490.0,0.00019342,2]
[365127304,1749481841019,-915.5,0.00019342,2]
[365127306,1749481841028,-490.0,0.00019342,2]
[365127308,1749481841038,-490.0,0.00019342,2]
[365127310,1749481841047,-490.0,0.00019342,2]
[365127312,1749481841057,-490.0,0.00019342,2]
[365127314,1749481841066,-618.55,0.00019342,2]
[365127316,1749481841076,-490.0,0.00019342,2]
[365127318,1749481841085,-3207.53,0.00019342,2]
[365127320,1749481841095,-490.0,0.00019342,2]
[365127322,1749481841105,-372.84183509,0.00019342,2]
[365127324,1749481841115,-689.86,0.00019342,2]
[365127326,1749481841124,-490.0,0.00019342,2]
[365127328,1749481841133,-8638.35,0.00019342,2]
[365127330,1749481841143,-490.0,0.00019342,2]
[365127332,1749481841152,-430.0,0.00019342,2]
[365127334,1749481841161,-490.0,0.00019342,2]
[365127336,1749481841170,-490.0,0.00019342,2]
[365127338,1749481841179,-490.0,0.00019342,2]
[365127340,1749481841188,-490.0,0.00019342,2]
[365127342,1749481841198,-1396.7,0.00019342,2]
[365127344,1749481841207,-2639.35,0.00019342,2]
[365127346,1749481841217,-982.98,0.00019342,2]
[365127348,1749481841226,-490.0,0.00019342,2]
[365127350,1749481841236,-490.0,0.00019342,2]
[365127352,1749481841247,-510.35,0.00019342,2]
[365127354,1749481841256,-490.0,0.00019342,2]
[365127356,1749481841266,-490.0,0.00019342,2]
[365127357,1749481841275,-638.51,0.00019342,2]
[365127359,1749481841286,-490.0,0.00019342,2]
[365127361,1749481841296,-202.05111547,0.00019342,2]
[365127363,1749481841306,-490.0,0.00019342,2]
[365127365,1749481841316,-1258.45,0.00019342,2]
[365127367,1749481841326,-903.15,0.00019342,2]
[365127369,1749481841336,-1092.88,0.00019342,2]
[365127371,1749481841345,-1627.57,0.00019342,2]
[365127373,1749481841356,-490.0,0.00019342,2]
[365127376,1749481841366,-628.57,0.00019342,2]
[365127377,1749481841376,-1028.36,0.00019342,2]
[365127379,1749481841385,-430.0,0.00019342,2]
[365127381,1749481841394,-294.6576333,0.00019342,2]
[365127383,1749481841404,-386.18484337,0.00019342,2]
[365127385,1749481841413,-954.28,0.00019342,2]
[365127387,1749481841422,-430.0,0.00019342,2]
[365127389,1749481841431,-526.20134844,0.00019342,2]
[365127391,1749481841441,-490.0,0.00019342,2]
[365127393,1749481841450,-450.0,0.00019342,2]
[365127395,1749481841460,-716.03,0.00019342,2]
[365127397,1749481841469,-490.0,0.00019342,2]
[365127399,1749481841479,-1009.72,0.00019342,2]
[365127401,1749481841488,-1012.31,0.00019342,2]
[365127403,1749481841497,-1487.91,0.00019342,2]
[365127405,1749481841506,-490.0,0.00019342,2]
[365127407,1749481841515,-490.0,0.00019342,2]
[365127409,1749481841524,-490.0,0.00019342,2]
[365127411,1749481841534,-490.0,0.00019342,2]
[365127413,1749481841543,-604.19,0.00019342,2]
[365127415,1749481841552,-371.11056006,0.00019342,2]
[365127417,1749481841561,-1157.54,0.00019342,2]
[365127419,1749481841570,-470.0,0.00019342,2]
[365127421,1749481841579,-452.93172348,0.00019342,2]
[365127423,1749481841588,-3459.96,0.00019342,2]
[365127425,1749481841598,-490.0,0.00019342,2]
[365127427,1749481841608,-1225.39,0.00019342,2]
[365127429,1749481841619,-490.0,0.00019342,2]
[365127431,1749481841628,-805.37,0.00019342,2]
[365127433,1749481841638,-2314.65,0.00019342,2]
[365127435,1749481841647,-490.0,0.00019342,2]
[365127437,1749481841656,-490.0,0.00019342,2]
[365127439,1749481841665,-490.0,0.00019342,2]
[365127441,1749481841674,-10343.7,0.00019342,2]
[365127443,1749481841683,-490.0,0.00019342,2]
[365127444,1749481841692,-660.77,0.00019342,2]
[365127446,1749481841701,-490.0,0.00019342,2]
[365127448,1749481841711,-490.0,0.00019342,2]
[365127450,1749481841720,-2392.15,0.00019342,2]
[365127452,1749481841729,-1296.15,0.00019342,2]
[365127454,1749481841738,-3627.26,0.00019342,2]
[365127456,1749481841748,-355.21151448,0.00019342,2]
[365127458,1749481841757,-894.72,0.00019342,2]
[365127460,1749481841766,-814.72,0.00019342,2]
[365127462,1749481841775,-1584.91,0.00019342,2]
[365127464,1749481841784,-238.26818472,0.00019348,2]
[365127466,1749481841794,-238.26818472,0.00019383,2]
[365127468,1749481841803,-1312.0,0.00019383,2]
[365127470,1749481841812,-1450.75153633,0.00019388,2]
[365127472,1749481841821,-1911.0,0.00019407,2]
[365127474,1749481841830,-238.26818472,0.00019417,2]
[365127476,1749481841840,-238.26818472,0.00019452,2]
[365127478,1749481841850,-1450.75153633,0.00019461,2]
[365127480,1749481841860,-1940.0,0.00019479,2]
[365127482,1749481841870,-238.26818472,0.00019486,2]
[365127484,1749481841879,-553.0,0.00019502,2]
[365127486,1749481841889,-850.37,0.00019506,2]
[365127488,1749481841898,-2767.64,0.00019506,2]
[365127490,1749481841907,-490.0,0.00019506,2]
[365127492,1749481841917,-1877.32,0.00019506,2]
[365127494,1749481841926,-464.57333225,0.00019506,2]
[365127496,1749481841935,-490.0,0.00019506,2]
[365127498,1749481841945,-490.0,0.00019506,2]
[365127500,1749481841954,-490.0,0.00019506,2]
[365127502,1749481841963,-1168.94,0.00019506,2]
[365127504,1749481841972,-490.0,0.00019506,2]
[365127506,1749481841982,-490.0,0.00019506,2]
[365127508,1749481841991,-490.0,0.00019506,2]
[365127510,1749481842000,-937.76,0.00019506,2]
[365127512,1749481842010,-2873.5,0.00019506,2]
[365127514,1749481842019,-490.0,0.00019506,2]
[365127537,1749481842243,-1477.15,0.00019506,2]
[365127539,1749481842252,-490.0,0.00019506,2]
[365127541,1749481842262,-490.0,0.00019506,2]
[365127543,1749481842271,-761.43,0.00019506,2]
[365127545,1749481842281,-490.0,0.00019506,2]
[365127547,1749481842290,-490.0,0.00019506,2]
[365127549,1749481842299,-490.0,0.00019506,2]
[365127551,1749481842309,-915.5,0.00019506,2]
[365127553,1749481842319,-426.81693847,0.00019506,2]
[365127555,1749481842329,-490.0,0.00019506,2]
[365127557,1749481842338,-366.99225157,0.00019506,2]
[365127559,1749481842347,-490.0,0.00019506,2]
[365127561,1749481842358,-618.55,0.00019506,2]
[365127563,1749481842367,-490.0,0.00019506,2]
[365127565,1749481842377,-3207.53,0.00019506,2]
[365127567,1749481842386,-490.0,0.00019506,2]
[365127569,1749481842396,-689.86,0.00019506,2]
[365127571,1749481842405,-490.0,0.00019506,2]
[365127573,1749481842420,-8638.35,0.00019506,2]
[365127575,1749481842429,-490.0,0.00019506,2]
[365127577,1749481842439,-490.0,0.00019506,2]
[365127579,1749481842448,-490.0,0.00019506,2]
[365127581,1749481842457,-405.46775445,0.00019506,2]
[365127583,1749481842466,-420.0,0.00019506,2]
[365127585,1749481842475,-1396.7,0.00019506,2]
[365127587,1749481842485,-2639.35,0.00019506,2]
[365127588,1749481842494,-982.98,0.00019506,2]
[365127589,1749481842506,-490.0,0.00019506,2]
[365127590,1749481842514,-490.0,0.00019506,2]
[365127591,1749481842523,-490.0,0.00019506,2]
[365127592,1749481842533,-510.35,0.00019506,2]
[365127593,1749481842542,-490.0,0.00019506,2]
[365127594,1749481842550,-638.51,0.00019506,2]
[365127595,1749481842560,-490.0,0.00019506,2]
[365127596,1749481842569,-490.0,0.00019506,2]
[365127597,1749481842579,-1258.45,0.00019506,2]
[365127599,1749481842589,-903.15,0.00019506,2]
[365127601,1749481842599,-1092.88,0.00019506,2]
[365127603,1749481842609,-1627.57,0.00019506,2]
[365127605,1749481842619,-490.0,0.00019506,2]
[365127607,1749481842628,-628.57,0.00019506,2]
[365127609,1749481842638,-1028.36,0.00019506,2]
[365127611,1749481842647,-954.28,0.00019506,2]
[365127613,1749481842656,-490.0,0.00019506,2]
[365127615,1749481842666,-716.03,0.00019506,2]
[365127617,1749481842676,-490.0,0.00019506,2]
[365127619,1749481842685,-1009.72,0.00019506,2]
[365127621,1749481842694,-1012.31,0.00019506,2]
[365127623,1749481842704,-1487.91,0.00019506,2]
[365127624,1749481842713,-490.0,0.00019506,2]
[365127626,1749481842722,-490.0,0.00019506,2]
[365127628,1749481842732,-490.0,0.00019506,2]
[365127630,1749481842742,-490.0,0.00019506,2]
[365127633,1749481842751,-604.19,0.00019506,2]
[365127634,1749481842760,-1157.54,0.00019506,2]
[365127637,1749481842770,-490.0,0.00019506,2]
[365127638,1749481842779,-1225.39,0.00019506,2]
[365127640,1749481842789,-490.0,0.00019506,2]
[365127643,1749481842799,-805.37,0.00019506,2]
[365127645,1749481842808,-2314.65,0.00019506,2]
[365127647,1749481842818,-490.0,0.00019506,2]
[365127649,1749481842827,-490.0,0.00019506,2]
[365127650,1749481842837,-3459.96,0.00019506,2]
[365127652,1749481842846,-490.0,0.00019506,2]
[365127655,1749481842856,-10343.7,0.00019506,2]
[365127657,1749481842866,-444.56024671,0.00019506,2]
[365127658,1749481842875,-660.77,0.00019506,2]
[365127660,1749481842884,-490.0,0.00019506,2]
[365127662,1749481842893,-490.0,0.00019506,2]
[365127664,1749481842903,-2392.15,0.00019506,2]
[365127666,1749481842912,-3627.26,0.00019506,2]
[365127668,1749481842923,-894.72,0.00019506,2]
[365127670,1749481842932,-814.72,0.00019506,2]
[365127672,1749481842941,-1584.91,0.00019506,2]
[365127674,1749481842950,-238.26818472,0.00019521,2]
[365127676,1749481842960,-238.26818472,0.00019555,2]
[365127678,1749481842970,-238.26818472,0.0001959,2]
[365127680,1749481842979,-1062.0,0.00019598,2]
[365127682,1749481842989,-477.820143,0.00019599,2]
[365127684,1749481842998,-238.26818472,0.00019624,2]
[365127686,1749481843009,-238.26818472,0.00019659,2]
[365127688,1749481843018,-850.37,0.00019671,2]
[365127690,1749481843027,-2767.64,0.00019671,2]
[365127692,1749481843037,-490.0,0.00019671,2]
[365127694,1749481843046,-1877.32,0.00019671,2]
[365127696,1749481843056,-275.68949792,0.00019671,2]
[365127698,1749481843066,-490.0,0.00019671,2]
[365127700,1749481843076,-490.0,0.00019671,2]
[365127702,1749481843085,-1168.94,0.00019671,2]
[365127704,1749481843095,-490.0,0.00019671,2]
[365127706,1749481843104,-490.0,0.00019671,2]
[365127708,1749481843114,-490.0,0.00019671,2]
[365127710,1749481843124,-937.76,0.00019671,2]
[365127712,1749481843135,-2873.5,0.00019671,2]
[365127714,1749481843145,-490.0,0.00019671,2]
[365127717,1749481843155,-1477.15,0.00019671,2]
[365127719,1749481843165,-490.0,0.00019671,2]
[365127721,1749481843175,-490.0,0.00019671,2]
[365127723,1749481843185,-761.43,0.00019671,2]
[365127725,1749481843196,-490.0,0.00019671,2]
[365127727,1749481843205,-490.0,0.00019671,2]
[365127729,1749481843215,-490.0,0.00019671,2]
[365127731,1749481843224,-915.5,0.00019671,2]
[365127732,1749481843235,-490.0,0.00019671,2]
[365127733,1749481843250,-490.0,0.00019671,2]
[365127735,1749481843260,-618.55,0.00019671,2]
[365127737,1749481843271,-437.44471724,0.00019671,2]
[365127738,1749481843281,-3207.53,0.00019671,2]
[365127741,1749481843290,-490.0,0.00019671,2]
[365127744,1749481843300,-689.86,0.00019671,2]
[365127746,1749481843310,-490.0,0.00019671,2]
[365127747,1749481843319,-8638.35,0.00019671,2]
[365127748,1749481843330,-490.0,0.00019671,2]
[365127749,1749481843340,-490.0,0.00019671,2]
[365127750,1749481843350,-490.0,0.00019671,2]
[365127751,1749481843361,-1396.7,0.00019671,2]
[365127752,1749481843371,-2639.35,0.00019671,2]
[365127754,1749481843380,-982.98,0.00019671,2]
[365127755,1749481843390,-490.0,0.00019671,2]
[365127756,1749481843400,-390.0,0.00019671,2]
[365127757,1749481843410,-490.0,0.00019671,2]
[365127758,1749481843422,-510.35,0.00019671,2]
[365127759,1749481843431,-490.0,0.00019671,2]
[365127760,1749481843441,-638.51,0.00019671,2]
[365127761,1749481843451,-390.0,0.00019671,2]
[365127762,1749481843461,-490.0,0.00019671,2]
[365127763,1749481843471,-903.15,0.00019671,2]
[365127764,1749481843481,-1092.88,0.00019671,2]
[365127765,1749481843491,-1627.57,0.00019671,2]
[365127766,1749481843501,-1258.45,0.00019671,2]
[365127767,1749481843511,-465.20755165,0.00019671,2]
[365127768,1749481843521,-628.57,0.00019671,2]
[365127769,1749481843530,-1028.36,0.00019671,2]
[365127770,1749481843540,-954.28,0.00019671,2]
[365127771,1749481843550,-445.73789773,0.00019671,2]
[365127772,1749481843559,-716.03,0.00019671,2]
[365127774,1749481843569,-490.0,0.00019671,2]
[365127776,1749481843578,-1009.72,0.00019671,2]
[365127778,1749481843588,-1487.91,0.00019671,2]
[365127780,1749481843598,-1012.31,0.00019671,2]
[365127782,1749481843607,-490.0,0.00019671,2]
[365127784,1749481843617,-490.0,0.00019671,2]
[365127786,1749481843627,-490.0,0.00019671,2]
[365127788,1749481843637,-490.0,0.00019671,2]
[365127790,1749481843647,-604.19,0.00019671,2]
[365127791,1749481843657,-1157.54,0.00019671,2]
[365127792,1749481843667,-490.0,0.00019671,2]
[365127793,1749481843678,-1225.39,0.00019671,2]
[365127794,1749481843688,-490.0,0.00019671,2]
[365127795,1749481843698,-805.37,0.00019671,2]
[365127796,1749481843708,-2314.65,0.00019671,2]
[365127797,1749481843718,-490.0,0.00019671,2]
[365127798,1749481843728,-490.0,0.00019671,2]
[365127799,1749481843738,-3459.96,0.00019671,2]
[365127800,1749481843747,-490.0,0.00019671,2]
[365127802,1749481843757,-10343.7,0.00019671,2]
[365127803,1749481843766,-660.77,0.00019671,2]
[365127804,1749481843776,-490.0,0.00019671,2]
[365127805,1749481843785,-490.0,0.00019671,2]
[365127806,1749481843795,-2392.15,0.00019671,2]
[365127807,1749481843804,-3627.26,0.00019671,2]
[365127808,1749481843814,-894.72,0.00019671,2]
[365127809,1749481843824,-814.72,0.00019671,2]
[365127810,1749481843834,-238.26818472,0.00019693,2]
[365127811,1749481843843,-414.0,0.00019694,2]
[365127812,1749481843853,-1000.0,0.000197,2]
[365127813,1749481843863,-156.587,0.00019726,2]
[365127814,1749481843873,-238.26818472,0.00019728,2]
[365127815,1749481843884,-238.26818472,0.00019762,2]
[365127816,1749481843894,-8541.77442396,0.00019771,2]
[365127817,1749481843904,-1292.0,0.00019789,2]
[365127818,1749481843913,-238.26818472,0.00019797,2]
[365127819,1749481843923,-1957.856,0.00019797,2]
[365127820,1749481843933,-207.4,0.00019797,2]
[365127821,1749481843942,-159.71419968,0.000198,2]
[365127822,1749481843952,-500.0,0.00019808,2]
[365127823,1749481843961,-500.0,0.00019808,2]
[365127824,1749481843971,-500.0,0.00019808,2]
[365127825,1749481843981,-500.0,0.00019808,2]
[365127826,1749481843990,-500.0,0.00019808,2]
[365127827,1749481844000,-500.0,0.00019808,2]
[365127828,1749481844009,-641.31629446,0.00019808,2]
[365127829,1749481844019,-21945.39789504,0.00019809,2]
[365127830,1749481844236,-159.71419968,0.00019825,2]
[365127831,1749481844246,-238.26818472,0.00019831,2]
[365127832,1749481844256,-850.37,0.00019835,2]
[365127833,1749481844266,-2767.64,0.00019835,2]
[365127834,1749481844277,-490.0,0.00019835,2]
[365127835,1749481844289,-1877.32,0.00019835,2]
[365127836,1749481844298,-490.0,0.00019835,2]
[365127837,1749481844309,-490.0,0.00019835,2]
[365127838,1749481844318,-1168.94,0.00019835,2]
[365127839,1749481844329,-490.0,0.00019835,2]
[365127840,1749481844339,-490.0,0.00019835,2]
[365127841,1749481844348,-490.0,0.00019835,2]
[365127842,1749481844358,-937.76,0.00019835,2]
[365127843,1749481844369,-2873.5,0.00019835,2]
[365127844,1749481844379,-490.0,0.00019835,2]
[365127845,1749481844390,-1477.15,0.00019835,2]
[365127846,1749481844400,-490.0,0.00019835,2]
[365127847,1749481844411,-490.0,0.00019835,2]
[365127848,1749481844421,-761.43,0.00019835,2]
[365127849,1749481844431,-490.0,0.00019835,2]
[365127850,1749481844441,-490.0,0.00019835,2]
[365127851,1749481844451,-490.0,0.00019835,2]
[365127852,1749481844461,-915.5,0.00019835,2]
[365127853,1749481844471,-490.0,0.00019835,2]
[365127854,1749481844482,-490.0,0.00019835,2]
[365127855,1749481844492,-618.55,0.00019835,2]
[365127856,1749481844502,-3207.53,0.00019835,2]
[365127857,1749481844512,-490.0,0.00019835,2]
[365127858,1749481844523,-689.86,0.00019835,2]
[365127859,1749481844532,-490.0,0.00019835,2]
[365127860,1749481844543,-8638.35,0.00019835,2]
[365127861,1749481844553,-490.0,0.00019835,2]
[365127862,1749481844563,-490.0,0.00019835,2]
[365127863,1749481844573,-490.0,0.00019835,2]
[365127864,1749481844583,-1396.7,0.00019835,2]
[365127865,1749481844593,-2639.35,0.00019835,2]
[365127866,1749481844603,-982.98,0.00019835,2]
[365127867,1749481844614,-490.0,0.00019835,2]
[365127868,1749481844624,-490.0,0.00019835,2]
[365127869,1749481844634,-510.35,0.00019835,2]
[365127870,1749481844644,-490.0,0.00019835,2]
[365127871,1749481844654,-638.51,0.00019835,2]
[365127872,1749481844664,-490.0,0.00019835,2]
[365127873,1749481844675,-903.15,0.00019835,2]
[365127874,1749481844684,-1092.88,0.00019835,2]
[365127875,1749481844694,-1627.57,0.00019835,2]
[365127876,1749481844704,-1258.45,0.00019835,2]
[365127877,1749481844714,-628.57,0.00019835,2]
[365127878,1749481844724,-1028.36,0.00019835,2]
[365127879,1749481844733,-954.28,0.00019835,2]
[365127880,1749481844744,-716.03,0.00019835,2]
[365127881,1749481844753,-490.0,0.00019835,2]
[365127882,1749481844763,-1009.72,0.00019835,2]
[365127883,1749481844774,-1487.91,0.00019835,2]
[365127884,1749481844784,-1012.31,0.00019835,2]
[365127885,1749481844794,-490.0,0.00019835,2]
[365127886,1749481844803,-490.0,0.00019835,2]
[365127887,1749481844813,-366.2013567,0.00019835,2]
[365127888,1749481844823,-490.0,0.00019835,2]
[365127889,1749481844832,-604.19,0.00019835,2]
[365127890,1749481844842,-1157.54,0.00019835,2]
[365127891,1749481844851,-490.0,0.00019835,2]
[365127892,1749481844862,-1225.39,0.00019835,2]
[365127893,1749481844872,-490.0,0.00019835,2]
[365127894,1749481844882,-805.37,0.00019835,2]
[365127895,1749481844892,-2314.65,0.00019835,2]
[365127896,1749481844902,-490.0,0.00019835,2]
[365127897,1749481844911,-490.0,0.00019835,2]
[365127898,1749481844922,-3459.96,0.00019835,2]
[365127899,1749481844931,-285.8563032,0.00019835,2]
[365127900,1749481844941,-10343.7,0.00019835,2]
[365127901,1749481844951,-660.77,0.00019835,2]
[365127902,1749481844960,-490.0,0.00019835,2]
[365127903,1749481844970,-490.0,0.00019835,2]
[365127904,1749481844979,-2392.15,0.00019835,2]
[365127905,1749481844989,-3627.26,0.00019835,2]
[365127906,1749481844999,-894.72,0.00019835,2]
[365127907,1749481845009,-200.0,0.0001984,2]
[365127908,1749481845019,-159.71419968,0.0001985,2]
[365127909,1749481845028,-2030.296672,0.00019852,2]
[365127910,1749481845038,-238.26818472,0.00019866,2]
[365127911,1749481845049,-368.5294,0.00019873,2]
[365127912,1749481845060,-2500.0,0.00019873,2]
[365127913,1749481845071,-159.71419968,0.00019875,2]
[365127914,1749481845081,-574.7391127,0.00019884,2]
[365127915,1749481845090,-1905.0,0.00019885,2]
[365127916,1749481845100,-1000.0,0.00019899,2]
[365127917,1749481845110,-1000.0,0.00019899,2]
[365127918,1749481845120,-5000.0,0.000199,2]
[365127919,1749481845130,-8073.6703,0.000199,2]
[365127920,1749481845139,-1000.0,0.000199,2]
[365127921,1749481845148,-1000.0,0.000199,2]
[365127922,1749481845157,-238.26818472,0.000199,2]
[365127923,1749481845166,-10815.97982977,0.000199,2]
[365127924,1749481845175,-159.71419968,0.000199,2]
[365127925,1749481845183,-3579.9271209,0.000199,2]
[365127926,1749481845192,-614.57906599,0.000199,2]
[365127927,1749481845201,-178.93188528,0.000199,2]
[365127928,1749481845211,-187.5,0.00019906,2]
[365127929,1749481845219,-2105.41764886,0.00019907,2]
[365127930,1749481845229,-934.156,0.00019925,2]
[365127931,1749481845239,-2183.31810187,0.00019962,2]
[365127932,1749481845249,-500.0,0.00019973,2]
[365127933,1749481845259,-500.0,0.00019973,2]
[365127934,1749481845269,-500.0,0.00019973,2]
[365127935,1749481845279,-500.0,0.00019973,2]
[365127936,1749481845290,-500.0,0.00019973,2]
[365127937,1749481845300,-500.0,0.00019973,2]
[365127938,1749481845310,-500.0,0.00019973,2]